bitfinex-derivatives/quotes_ETHF0:USTF0_20210111
["timestamp","ask_amount","ask_price","bid_price","bid_amount"]
[1610372206621,2.2005,1049.6,1049.3,4.00959]
[1610372206822,0.7369,1049.6,1049.3,4.00959]
[1610372207222,0.7369,1049.6,1049.1,0.1055]
[1610372208622,4.00959,1049.2,1047.9,4.00959]
[1610372208823,6.11929,1049.2,1047.9,4.00959]
[1610372209623,6.11929,1049.2,1047.4,67.7119]
[1610372210025,4.63139,1049.2,1047.4,67.7119]
[1610372210624,4.00959,1047.5,1047.4,67.7119]
[1610372211724,5.67969,1047.5,1047.4,67.7119]
[1610372212727,5.67969,1047.5,1047.4,19.9612]
[1610372212925,4.20589,1047.5,1046.0,4.00959]
[1610372213125,4.20589,1047.5,1045.2,63.134]
[1610372213126,69.2007,1047.4,1045.2,63.134]
[1610372215527,75.7362,1047.2,1044.8,30.0]
[1610372215727,77.3727,1047.2,1044.8,30.0]
[1610372215927,75.9131,1047.2,1044.8,30.0]
[1610372216128,75.9131,1047.2,1044.8,39.0115]
[1610372216327,72.0678,1047.2,1044.8,39.0115]
[1610372216729,70.4313,1047.2,1047.1,4.00959]
[1610372216929,70.4313,1047.2,1047.1,5.74469]
[1610372217129,2.2274,1048.9,1047.1,5.74469]
[1610372217329,2.2274,1048.9,1047.1,1.7351]
[1610372217730,6.1682,1049.8,1047.1,1.7351]
[1610372218131,6.1682,1049.8,1047.1,31.7351]
[1610372218931,4.6912,1049.8,1047.1,31.7351]
[1610372219230,4.6912,1049.8,1047.1,1.7351]
[1610372220633,4.6912,1049.8,1049.7,4.00959]
[1610372220833,4.6912,1049.8,1048.2,2.0759]
[1610372221034,6.3875,1049.8,1048.2,2.0759]
[1610372222131,4.8921,1049.8,1048.2,2.0759]
[1610372222736,4.00959,1049.3,1048.7,4.00959]
[1610372222933,1.9394,1049.5,1048.7,4.00959]
[1610372223436,4.8921,1049.8,1048.7,4.00959]
[1610372223637,1.6963,1049.8,1048.8,30.0]
[1610372223836,23.41668575,1050.7,1048.8,32.1371]
[1610372224041,23.53922245,1050.9,1048.8,32.1371]
[1610372224238,23.62360823,1051.3,1048.8,32.1371]
[1610372224636,23.6582937,1051.5,1051.2,4.00959]
[1610372225037,22.2234919,1051.8,1051.2,4.00959]
[1610372225239,4.00959,1052.4,1051.2,4.00959]
[1610372225537,4.00959,1052.4,1050.6,2.2772]
[1610372225737,5.85529,1052.4,1050.6,2.2772]
[1610372225937,5.85529,1052.4,1048.8,2.1371]
[1610372226739,4.00959,1050.6,1048.8,2.1371]
[1610372226939,6.06969,1050.6,1048.8,2.1371]
[1610372228140,4.59869,1050.6,1048.8,2.1371]
[1610372228339,4.49869,1050.6,1048.8,2.1371]
[1610372228741,4.00959,1049.0,1048.8,2.1371]
[1610372228942,4.00959,1049.0,1048.1,76.5502]
[1610372230746,1.5821,1049.1,1048.2,4.00959]
[1610372231346,0.0101,1049.1,1048.2,4.00959]
[1610372232548,0.0101,1049.1,1048.3,1.7352]
[1610372232750,0.0101,1049.1,1049.0,4.00959]
[1610372232955,4.00959,1050.0,1049.0,4.00959]
[1610372233452,4.00959,1050.0,1048.3,1.7352]
[1610372233652,4.00959,1050.0,1048.3,0.105]
[1610372233653,6.48059,1050.0,1048.3,0.105]
[1610372234454,4.99669,1050.0,1048.3,0.105]
[1610372234654,4.00959,1048.7,1048.3,0.105]
[1610372234856,6.04499,1048.7,1047.4,6.1325]
[1610372236861,4.00959,1047.5,1047.4,6.1325]
[1610372237062,5.82389,1047.5,1046.1,4.00959]
[1610372237462,4.34789,1047.5,1046.1,4.00959]
[1610372238763,4.00959,1047.2,1046.8,4.00959]
[1610372238963,6.00359,1047.2,1046.8,4.00959]
[1610372240764,1.994,1047.2,1046.8,4.00959]
[1610372241269,0.1804,1047.2,1046.8,4.00959]
[1610372241464,25.50056628,1048.7,1046.8,4.00959]
[1610372241465,1.9636,1047.8,1046.8,4.00959]
[1610372242665,1.9636,1047.8,1046.6,2.1254]
[1610372242877,4.00959,1047.2,1046.9,4.00959]
[1610372243067,4.00959,1047.2,1046.6,2.1254]
[1610372243567,2.3033,1047.4,1043.1,0.29273162]
[1610372243767,2.3033,1047.4,1043.1,2.44813162]
[1610372243968,2.3033,1047.4,1043.2,30.0]
[1610372244167,2.0354,1048.7,1043.4,0.29267035]
[1610372244367,23.55983838,1049.3,1043.4,2.16587035]
[1610372244567,23.55983838,1049.3,1043.6,0.29265534]
[1610372244769,4.00959,1048.6,1048.2,4.00959]
[1610372244969,23.52565167,1049.4,1048.2,4.00959]
[1610372245371,23.52623891,1049.6,1048.2,4.00959]
[1610372245771,23.53381387,1049.8,1048.2,6.47569]
[1610372246771,4.00959,1049.3,1049.0,4.00959]
[1610372246971,6.14229,1049.3,1049.0,4.00959]
[1610372247171,6.14229,1049.3,1048.2,2.4661]
[1610372247573,4.63759,1049.3,1048.2,2.4661]
[1610372247975,4.63759,1049.3,1047.7,2.1603]
[1610372248172,4.63759,1049.3,1047.4,2.1785]
[1610372248373,4.63759,1049.3,1047.1,75.5178]
[1610372248778,4.00959,1047.5,1047.1,75.5178]
[1610372248975,6.17709,1047.5,1047.1,75.5178]
[1610372250473,4.68439,1047.5,1047.1,75.5178]
[1610372250675,4.68439,1047.5,1043.5,176.2895]
[1610372250676,2.1675,1047.5,1043.0,0.29274928]
[1610372250873,2.1675,1047.5,1047.4,4.00959]
[1610372251073,2.1327,1049.3,1047.4,4.00959]
[1610372251878,25.46060199,1049.3,1047.4,4.00959]
[1610372252775,4.00959,1048.2,1047.9,4.00959]
[1610372252983,6.18119,1048.2,1047.9,4.00959]
[1610372253175,2.1716,1048.2,1047.9,4.00959]
[1610372253673,0.6061,1048.2,1047.9,4.00959]
[1610372253876,1.7809,1048.5,1047.9,4.00959]
[1610372255374,1.7809,1048.5,1047.6,1.7305]
[1610372255576,1.7809,1048.5,1047.2,2.0941]
[1610372256278,1.7809,1048.5,1046.9,1.8747]
[1610372256479,1.7809,1048.5,1046.5,2.1006]
[1610372256678,1.7809,1048.5,1043.5,0.29264357]
[1610372256880,0.2701,1048.5,1046.9,4.00959]
[1610372257278,0.2701,1048.5,1046.2,2.0174]
[1610372258679,2.1327,1049.3,1046.2,2.0174]
[1610372258879,4.00959,1047.6,1046.2,2.0174]
[1610372259081,6.45729,1047.6,1046.2,2.0174]
[1610372259481,6.45729,1047.6,1043.2,6.2479]
[1610372259681,6.45729,1047.6,1043.2,36.2479]
[1610372259883,4.698,1047.5,1043.3,5.7526]
[1610372260285,4.698,1047.5,1043.3,9.14553437]
[1610372260481,6.45729,1047.6,1043.3,3.39293437]
[1610372260683,6.45729,1047.6,1043.3,5.69623437]
[1610372260881,4.00959,1045.6,1045.1,4.00959]
[1610372261481,1.7744,1046.1,1045.1,4.00959]
[1610372262285,2.4477,1047.6,1045.1,4.00959]
[1610372262791,4.00959,1046.6,1046.0,4.00959]
[1610372263000,4.65279,1046.6,1045.0,2.0041]
[1610372264789,4.00959,1046.1,1045.0,2.0041]
[1610372264990,5.85479,1046.1,1045.0,2.0041]
[1610372265689,1.8452,1046.1,1045.0,2.0041]
[1610372265888,0.3841,1046.1,1045.0,2.0041]
[1610372266289,2.1195,1046.6,1045.0,2.0041]
[1610372266691,2.1195,1046.6,1045.0,1.7177]
[1610372266891,2.1195,1046.6,1045.6,4.00959]
[1610372267390,2.4477,1047.6,1045.6,6.23279]
[1610372267591,22.98241967,1048.3,1045.6,6.23279]
[1610372267791,23.03122203,1048.7,1045.6,6.23279]
[1610372268192,26.48295312,1049.1,1045.6,6.23279]
[1610372268391,3.405,1049.1,1048.7,0.359]
[1610372268592,23.08592995,1049.2,1048.7,0.359]
[1610372268791,4.00959,1048.8,1048.7,0.359]
[1610372268990,6.34629,1048.8,1048.7,0.359]
[1610372269194,4.80099,1048.8,1048.7,0.359]
[1610372269993,2.3367,1048.8,1048.7,0.359]
[1610372270893,6.34629,1048.8,1048.7,4.36859]
[1610372271093,6.34629,1048.8,1048.7,0.359]
[1610372271094,2.3367,1048.8,1048.7,0.359]
[1610372271293,1.5024,1049.1,1048.7,0.359]
[1610372271701,23.11859161,1049.9,1048.7,0.359]
[1610372271896,2.471,1050.0,1048.7,0.359]
[1610372272101,23.12805015,1050.1,1048.7,0.359]
[1610372272300,23.13174684,1050.2,1048.7,0.359]
[1610372272901,4.00959,1049.7,1049.0,4.00959]
[1610372273101,6.09659,1049.7,1048.7,0.359]
[1610372273301,6.09659,1049.7,1048.1,1.9747]
[1610372273501,6.09659,1049.7,1047.6,2.3898]
[1610372273701,6.09659,1049.7,1044.1,0.29256051]
[1610372273901,6.09659,1049.7,1044.8,30.0]
[1610372274602,6.09659,1049.7,1043.4,0.29265812]
[1610372274802,4.00959,1047.0,1046.8,4.00959]
[1610372275202,0.5243,1047.9,1046.8,4.00959]
[1610372275404,0.5243,1047.9,1046.8,6.12159]
[1610372276004,2.2858,1048.2,1046.8,6.12159]
[1610372276203,53.8843,1049.3,1046.8,6.12159]
[1610372276805,4.00959,1049.1,1048.8,4.00959]
[1610372277006,5.52949,1049.1,1048.8,4.00959]
[1610372277205,5.52949,1049.1,1046.8,2.112]
[1610372278405,4.05159,1049.1,1046.8,2.112]
[1610372278807,1.5199,1049.1,1046.8,2.112]
[1610372279006,1.5199,1049.1,1047.2,71.222]
[1610372279206,1.5199,1049.1,1047.2,72.769]
[1610372280907,1.5199,1049.1,1048.9,4.00959]
[1610372281108,1.5199,1049.1,1047.2,72.769]
[1610372281109,1.5199,1049.1,1048.3,1.9583]
[1610372281708,3.87539,1049.3,1048.3,1.9583]
[1610372282811,66.2598,1049.4,1049.2,4.00959]
[1610372284112,66.2598,1049.4,1049.2,5.85589]
[1610372284911,76.0332,1050.1,1049.2,5.85589]
[1610372286912,76.0332,1050.1,1050.0,4.00959]
[1610372288111,23.0090982,1050.8,1050.0,4.00959]
[1610372288311,6.811,1051.1,1050.0,4.00959]
[1610372288312,23.00886938,1050.9,1050.0,4.00959]
[1610372288510,23.01309535,1051.0,1050.0,4.00959]
[1610372288911,23.01309535,1051.0,1050.9,4.00959]
[1610372289313,23.02929753,1051.2,1050.9,4.00959]
[1610372290312,23.04375054,1051.3,1050.4,2.4353]
[1610372290713,23.04375054,1051.3,1049.8,65.2773]
[1610372290913,4.00959,1050.9,1050.2,4.00959]
[1610372291113,1.7784,1050.9,1050.2,4.00959]
[1610372292415,1.5985,1050.9,1050.2,4.00959]
[1610372292817,1.5985,1050.9,1050.8,4.00959]
[1610372293618,4.00959,1052.0,1050.8,4.00959]
[1610372294822,4.00959,1051.6,1050.8,4.00959]
[1610372295021,1.5046,1051.6,1050.8,4.00959]
[1610372295524,3.405,1052.2,1050.8,4.00959]
[1610372296924,4.00959,1051.8,1050.4,1.8479]
[1610372297126,6.17609,1051.8,1050.4,1.8479]
[1610372297725,6.17609,1051.8,1049.8,72.6371]
[1610372297926,16.39119,1051.8,1049.8,72.6371]
[1610372298925,12.3816,1051.8,1049.8,72.6371]
[1610372299625,12.3514,1051.8,1049.8,72.6371]
[1610372300927,4.00959,1050.8,1050.1,4.00959]
[1610372302828,2.52489,1050.8,1050.1,4.00959]
[1610372303030,1.5577,1050.9,1049.8,72.6371]
[1610372305037,1.5577,1050.9,1050.6,4.00959]
[1610372305233,23.28698087,1051.5,1050.6,4.00959]
[1610372305431,23.26051771,1051.6,1050.6,4.00959]
[1610372305831,21.78501771,1051.6,1050.6,4.00959]
[1610372306033,2.1363,1051.8,1050.6,4.00959]
[1610372306233,6.0731,1052.1,1050.6,4.00959]
[1610372307033,4.00959,1051.7,1050.9,4.00959]
[1610372307633,5.60919,1051.7,1050.9,4.00959]
[1610372308835,4.14479,1051.7,1050.9,4.00959]
[1610372309036,4.14479,1051.7,1051.3,4.00959]
[1610372309037,1.5996,1051.7,1051.3,4.00959]
[1610372310943,4.00959,1051.4,1050.4,2.4416]
[1610372311145,6.49189,1051.4,1050.4,2.4416]
[1610372311343,6.49189,1051.4,1050.0,64.9065]
[1610372311746,5.03109,1051.4,1050.0,64.9065]
[1610372312745,64.664,1051.3,1049.3,5.9634]
[1610372312945,4.00959,1049.6,1046.8,4.29179]
[1610372313147,1.8463,1049.6,1046.9,30.0]
[1610372313349,1.8463,1049.6,1047.0,6.2955]
[1610372313549,2.4823,1051.4,1047.1,30.0]
[1610372314149,2.4823,1051.4,1047.0,6.2955]
[1610372314349,11.4823,1051.4,1047.0,6.2955]
[1610372314549,30.0,1051.3,1047.0,6.2955]
[1610372314949,4.00959,1048.5,1048.3,4.00959]
[1610372315349,6.05489,1048.5,1048.3,2.52279]
[1610372316351,2.0453,1048.5,1048.3,2.52279]
[1610372316550,2.0453,1048.5,1047.0,6.2955]
[1610372316751,2.0453,1048.5,1048.3,65.043]
[1610372316951,4.00959,1048.4,1048.3,65.043]
[1610372317651,4.00959,1048.4,1047.9,4.00959]
[1610372317851,2.54549,1048.4,1047.9,4.00959]
[1610372318252,2.0453,1048.5,1047.9,4.00959]
[1610372318951,4.00959,1048.3,1048.0,4.00959]
[1610372319354,1.9911,1048.5,1048.0,4.00959]
[1610372319751,1.9911,1048.5,1047.5,1.7878]
[1610372320750,1.9911,1048.5,1047.2,64.5473]
[1610372320955,4.00959,1047.8,1047.1,4.00959]
[1610372321155,2.48999,1047.8,1047.1,2.29319]
[1610372321353,2.48999,1047.8,1046.4,54.1993]
[1610372322854,2.1623,1047.9,1046.4,54.1993]
[1610372323054,2.1623,1047.9,1047.1,4.00959]
[1610372323254,1.98,1048.2,1047.1,4.00959]
[1610372324055,0.5049,1048.2,1047.0,1.7895]
[1610372325057,4.00959,1047.3,1047.0,5.79909]
[1610372325257,0.5049,1048.2,1047.0,5.79909]
[1610372326258,1.9911,1048.5,1047.0,5.79909]
[1610372326459,67.9371,1049.0,1047.0,5.79909]
[1610372326659,67.9371,1049.0,1047.0,1.7895]
[1610372327061,2.54909,1047.6,1047.4,4.00959]
[1610372327459,2.54909,1047.6,1047.0,1.7895]
[1610372327659,2.54909,1047.6,1047.0,1.2158]
[1610372327859,2.54909,1047.6,1046.5,6.0146]
[1610372328059,2.54909,1047.6,1046.5,4.3521]
[1610372328958,2.2393,1047.8,1046.5,4.3521]
[1610372328959,4.00959,1046.6,1046.5,4.3521]
[1610372329559,1.7291,1047.3,1046.5,4.3521]
[1610372330158,0.2555,1047.3,1046.5,4.3521]
[1610372330963,4.00959,1046.6,1046.5,4.3521]
[1610372331163,5.98809,1046.6,1046.5,4.3521]
[1610372331364,5.98809,1046.6,1046.3,45.5595]
[1610372331560,5.98809,1046.6,1045.5,4.00959]
[1610372332566,1.9785,1046.6,1045.5,4.00959]
[1610372332964,1.9785,1046.6,1046.5,4.00959]
[1610372333165,0.2555,1047.3,1046.5,4.00959]
[1610372334065,2.2393,1047.8,1046.5,4.00959]
[1610372334466,31.80844327,1048.8,1046.5,4.00959]
[1610372335065,4.00959,1046.9,1046.5,4.00959]
[1610372335665,4.00959,1046.9,1046.3,1.9038]
[1610372335865,4.00959,1046.9,1046.0,1.7856]
[1610372336267,2.52999,1046.9,1045.7,2.3786]
[1610372336867,11.52999,1046.9,1045.3,72.3023]
[1610372337066,4.00959,1045.4,1045.3,72.3023]
[1610372338166,4.00959,1045.4,1042.3,30.0]
[1610372338366,4.00959,1045.4,1042.6,30.0]
[1610372338971,4.00959,1045.0,1044.3,4.00959]
[1610372339366,2.49739,1045.0,1044.3,4.00959]
[1610372339567,2.49739,1045.0,1041.7,1.898]
[1610372339568,4.62169,1045.0,1041.7,1.898]
[1610372339767,4.62169,1045.0,1041.9,1.9279]
[1610372340170,2.1243,1045.0,1041.9,1.9279]
[1610372340869,1.8464,1045.3,1041.4,0.29318248]
[1610372341072,1.8464,1045.3,1044.6,4.00959]
[1610372341670,1.8464,1045.3,1044.2,2.1328]
[1610372342370,0.3684,1045.3,1042.1,6.1548]
[1610372342771,9.3684,1045.3,1042.1,6.1548]
[1610372342970,4.00959,1043.8,1043.6,4.00959]
[1610372343170,4.00959,1043.8,1042.1,6.1548]
[1610372345074,4.00959,1043.1,1042.8,4.00959]
[1610372345270,63.4302,1044.0,1042.8,4.00959]
[1610372345472,1.879,1044.1,1042.8,5.81739]
[1610372346073,1.879,1044.1,1042.8,1.8078]
[1610372346273,1.879,1044.1,1042.0,0.05]
[1610372346674,1.879,1044.1,1041.7,2.036]
[1610372346874,0.4,1042.1,1041.7,1.327]
[1610372347075,4.00959,1042.0,1041.9,4.00959]
[1610372347276,4.00959,1042.0,1040.2,5.8234]
[1610372348077,5.86929,1042.0,1040.2,5.8234]
[1610372348475,4.40269,1042.0,1040.2,5.8234]
[1610372348679,0.4,1042.1,1040.2,5.8234]
[1610372348877,0.4,1042.1,1040.2,8.2026]
[1610372349077,0.4,1042.1,1042.0,4.00959]
[1610372349277,0.4,1042.1,1042.0,5.66789]
[1610372349475,1.879,1044.1,1042.0,5.66789]
[1610372349676,22.36263733,1045.4,1042.0,5.66789]
[1610372350076,27.76204546,1047.8,1042.0,5.66789]
[1610372350077,22.41043388,1045.7,1042.0,5.66789]
[1610372350277,22.43648565,1045.9,1042.0,5.66789]
[1610372350477,56.7795,1045.6,1042.0,5.66789]
[1610372350676,59.1703,1045.6,1042.0,5.66789]
[1610372351076,4.00959,1043.9,1042.0,1.6583]
[1610372351476,2.53269,1043.9,1042.0,1.6583]
[1610372352979,2.53269,1043.9,1041.8,59.2914]
[1610372353179,1.6416,1044.0,1041.8,59.2914]
[1610372353880,1.6416,1044.0,1041.8,60.9356]
[1610372354284,1.6416,1044.0,1041.8,1.6442]
[1610372354682,0.105,1044.0,1041.8,1.6442]
[1610372355182,0.105,1044.0,1043.9,4.00959]
[1610372355583,0.105,1044.0,1043.0,1.5266]
[1610372356182,62.7805,1044.2,1043.0,1.5266]
[1610372356382,62.7805,1044.2,1041.8,1.6442]
[1610372357184,62.7805,1044.2,1043.3,4.00959]
[1610372357384,62.7805,1044.2,1041.8,1.6442]
[1610372357584,63.0204,1044.2,1041.8,1.6442]
[1610372357784,1.7033,1044.2,1041.8,1.6442]
[1610372357984,1.46761332,1044.1,1041.8,1.6442]
[1610372358985,1.46761332,1044.1,1041.5,2.1105]
[1610372359183,1.46761332,1044.1,1042.0,4.00959]
[1610372359586,1.46761332,1044.1,1041.5,1.8073]
[1610372360385,10.46761332,1044.1,1041.5,1.8073]
[1610372360784,8.99311332,1044.1,1041.5,1.8073]
[1610372361183,4.00959,1041.6,1041.2,4.00959]
[1610372362188,2.4426,1041.9,1041.2,4.00959]
[1610372362986,62.8263,1043.3,1041.2,4.00959]
[1610372363187,4.00959,1042.3,1041.1,1.7045]
[1610372363387,6.10399,1042.3,1041.1,1.7045]
[1610372363588,61.0469,1042.0,1041.1,1.7045]
[1610372363788,61.4786,1042.0,1040.8,2.4753]
[1610372364087,61.4786,1042.0,1039.5,61.2018]
[1610372364589,0.4,1041.1,1039.5,61.2018]
[1610372364788,2.7351,1041.1,1039.6,3.64401118]
[1610372364988,2.7351,1041.1,1039.6,5.50771118]
[1610372365992,2.7351,1041.1,1039.7,3.64487453]
[1610372366891,1.263,1041.1,1039.7,3.64487453]
[1610372367097,4.00959,1039.8,1039.7,3.64487453]
[1610372367492,4.00959,1039.8,1039.6,1.8637]
[1610372367893,1.5558,1040.5,1039.6,1.8637]
[1610372368094,1.263,1041.1,1039.6,1.8637]
[1610372369095,4.00959,1042.8,1041.0,4.00959]
[1610372369293,22.59260928,1044.7,1041.0,6.14279]
[1610372369894,21.08660928,1044.7,1041.0,6.14279]
[1610372370993,0.6,1045.5,1041.0,6.14279]
[1610372371194,4.00959,1045.0,1041.0,2.1332]
[1610372371393,6.01059,1045.0,1041.0,2.1332]
[1610372371793,6.01059,1045.0,1041.0,32.1332]
[1610372371993,2.001,1045.0,1041.0,32.1332]
[1610372372996,72.605,1043.6,1041.1,3.58863701]
[1610372373196,0.5194,1045.0,1043.5,4.00959]
[1610372373396,0.5194,1045.0,1043.5,5.50279]
[1610372373596,0.6,1045.5,1043.5,5.50279]
[1610372374397,0.6,1045.5,1043.5,1.4932]
[1610372374597,0.6,1045.5,1041.1,3.58863701]
[1610372374797,0.6,1045.5,1041.0,2.1332]
[1610372374798,2.3964,1045.5,1041.0,2.1332]
[1610372374999,2.3964,1045.5,1039.7,0.29353258]
[1610372375198,4.00959,1042.9,1042.0,4.00959]
[1610372375398,5.69459,1042.9,1042.0,4.00959]
[1610372375997,0.2214,1042.9,1042.0,4.00959]
[1610372376800,2.2345,1043.2,1042.0,4.00959]
[1610372377199,2.2345,1043.2,1043.1,4.00959]
[1610372377407,2.2345,1043.2,1042.9,1.9176]
[1610372378198,1.9779,1043.6,1042.9,1.9176]
[1610372378598,1.9779,1043.6,1042.9,2.1972]
[1610372379000,0.5162,1043.6,1042.9,2.1972]
[1610372379212,0.5162,1043.6,1042.9,6.20679]
[1610372380300,2.3964,1045.5,1042.9,6.20679]
[1610372380499,24.81563622,1045.5,1042.9,6.20679]
[1610372381100,4.00959,1045.1,1044.9,4.00959]
[1610372381301,2.4449,1045.1,1044.9,4.00959]
[1610372382202,0.8646,1045.1,1044.9,4.00959]
[1610372383302,2.3964,1045.5,1044.9,4.00959]
[1610372384303,2.3964,1045.5,1044.8,2.1299]
[1610372384707,0.6,1045.5,1044.8,2.1299]
[1610372385103,4.00959,1045.2,1044.8,2.1299]
[1610372385305,4.00959,1045.2,1044.4,2.2354]
[1610372385503,2.49449,1045.2,1044.4,2.2354]
[1610372386105,4.59649,1045.2,1044.1,4.00959]
[1610372386304,4.59649,1045.2,1042.9,2.1972]
[1610372386504,4.59649,1045.2,1042.5,1.5929]
[1610372386704,4.59649,1045.2,1040.1,0.2933333]
[1610372387104,4.59649,1045.2,1040.0,0.29335661]
[1610372387313,4.00959,1043.3,1043.2,4.00959]
[1610372387706,4.00959,1043.3,1041.1,61.3273]
[1610372388510,1.7518,1043.5,1041.1,61.3273]
[1610372388710,1.7518,1043.5,1042.0,2.2066]
[1610372389110,78.1944,1044.6,1042.0,32.2066]
[1610372389313,78.1944,1044.6,1044.5,4.00959]
[1610372389528,78.1944,1044.6,1044.5,5.59309]
[1610372391515,0.6,1045.5,1044.5,5.59309]
[1610372393117,22.67303542,1046.7,1044.5,5.59309]
[1610372393316,22.77155096,1046.9,1045.7,4.00959]
[1610372393516,22.82145702,1047.2,1045.7,4.00959]
[1610372393917,77.86939,1047.3,1045.7,4.00959]
[1610372394118,73.8598,1047.3,1045.7,6.16449]
[1610372394717,22.9102542,1047.8,1045.7,6.16449]
[1610372395317,22.9102542,1047.8,1046.6,4.00959]
[1610372396220,22.9151523,1047.9,1046.6,4.00959]
[1610372397419,22.9151523,1047.9,1046.1,1.7283]
[1610372397619,24.4283523,1047.9,1046.1,1.7283]
[1610372397820,1.5132,1047.9,1046.1,1.7283]
[1610372399421,1.5132,1047.9,1047.8,4.00959]
[1610372399820,1.5132,1047.9,1046.6,2.3396]
[1610372400722,0.0233,1047.9,1046.6,2.3396]
[1610372401322,0.0233,1047.9,1047.8,4.00959]
[1610372402222,96.06946207,1049.8,1047.8,4.00959]
[1610372402422,72.1784,1049.8,1047.8,6.47769]
[1610372403222,72.1784,1049.8,1047.9,30.0]
[1610372403430,72.1784,1049.8,1049.7,4.00959]
[1610372403627,80.33264814,1050.8,1049.7,4.00959]
[1610372403826,24.02434814,1050.8,1049.7,4.00959]
[1610372404028,24.07059061,1051.2,1049.7,4.00959]
[1610372404227,24.10886584,1051.6,1049.7,4.00959]
[1610372404630,22.36089241,1051.9,1049.7,4.00959]
[1610372405037,10.216,1053.8,1049.7,4.00959]
[1610372405038,25.20470234,1053.2,1049.7,4.00959]
[1610372405430,25.20470234,1053.2,1052.7,4.00959]
[1610372405631,25.20470234,1053.2,1049.7,2.2858]
[1610372405830,27.23730234,1053.2,1049.7,2.2858]
[1610372406230,2.0326,1053.2,1049.7,2.2858]
[1610372407331,2.0326,1053.2,1053.1,4.00959]
[1610372407732,2.0326,1053.2,1051.6,2.3351]
[1610372407933,0.4021,1053.2,1051.6,2.3351]
[1610372408334,23.4564624,1052.6,1051.6,2.3351]
[1610372408533,25.7833624,1052.6,1051.6,2.3351]
[1610372408733,25.7833624,1052.6,1051.1,1.615]
[1610372409333,25.7833624,1052.6,1050.7,72.0456]
[1610372410535,25.7833624,1052.6,1049.7,2.2858]
[1610372410733,25.7833624,1052.6,1049.2,2.2608]
[1610372410937,24.2751624,1052.6,1046.8,0.2921999]
[1610372411136,24.2751624,1052.6,1046.2,0.29226272]
[1610372411335,4.00959,1051.4,1050.7,4.00959]
[1610372411534,5.93909,1051.4,1050.7,4.00959]
[1610372411934,20.2142524,1052.6,1050.7,4.00959]
[1610372412136,1.7368,1051.4,1050.7,4.00959]
[1610372413336,1.7368,1051.4,1051.3,4.00959]
[1610372413536,1.7368,1051.4,1049.6,1.6521]
[1610372414137,1.7368,1051.4,1046.0,0.29236877]
[1610372414539,1.7368,1051.4,1045.6,30.0]
[1610372414738,1.7368,1051.4,1045.7,30.0]
[1610372414938,1.7368,1051.4,1045.7,31.617]
[1610372415139,3.72699,1051.9,1045.7,31.617]
[1610372415340,4.00959,1050.8,1050.2,4.00959]
[1610372415540,2.3128,1050.8,1050.2,4.00959]
[1610372417041,1.746,1051.4,1050.2,4.00959]
[1610372417241,1.746,1051.4,1050.2,6.45459]
[1610372417442,1.746,1051.4,1051.3,4.00959]
[1610372417642,1.746,1051.4,1050.2,2.445]
[1610372417643,1.746,1051.4,1049.2,2.1392]
[1610372418243,0.2672,1051.4,1049.2,2.1392]
[1610372418843,2.4091,1051.7,1049.2,32.1392]
[1610372419441,2.4091,1051.7,1051.6,4.00959]
[1610372419843,2.3269,1052.6,1051.6,4.00959]
[1610372420043,0.4021,1053.2,1051.6,4.00959]
[1610372420243,24.88826461,1053.5,1051.6,4.00959]
[1610372420443,4.00959,1053.7,1051.6,4.00959]
[1610372421347,2.42689,1052.8,1052.2,4.00959]
[1610372421545,4.84069,1052.8,1052.2,4.00959]
[1610372421744,4.84069,1052.8,1051.5,2.3099]
[1610372421945,23.86708042,1052.6,1051.5,2.3099]
[1610372422644,23.86708042,1052.6,1049.2,2.1392]
[1610372422845,23.86708042,1052.6,1048.1,30.0]
[1610372423444,23.86708042,1052.6,1052.5,4.00959]
[1610372423644,23.86708042,1052.6,1051.4,1.9918]
[1610372423848,23.85644263,1052.7,1051.4,1.9918]
[1610372424045,23.65644263,1052.7,1051.4,1.9918]
[1610372424246,23.89417791,1053.2,1051.4,1.9918]
[1610372424655,23.43044723,1054.3,1051.4,1.9918]
[1610372425046,25.00719645,1054.8,1051.4,1.9918]
[1610372425446,4.00959,1053.5,1051.4,1.9918]
[1610372425647,6.29639,1053.5,1051.7,74.2794]
[1610372425847,6.29639,1053.5,1051.7,76.5674]
[1610372426451,2.2868,1053.5,1051.7,76.5674]
[1610372427449,2.2868,1053.5,1053.4,4.00959]
[1610372427652,9.1342,1054.8,1053.4,4.00959]
[1610372427849,26.08225106,1056.0,1053.4,4.00959]
[1610372428651,26.1671718,1056.2,1053.4,4.00959]
[1610372429053,26.21306606,1056.3,1053.4,4.00959]
[1610372429252,64.4495,1055.7,1053.4,4.00959]
[1610372429453,1.879,1055.7,1055.3,4.00959]
[1610372429652,1.879,1055.7,1053.2,2.142]
[1610372430853,2.83269,1056.0,1053.2,2.142]
[1610372431053,2.4612,1055.7,1053.2,2.142]
[1610372431454,4.00959,1054.8,1054.6,4.00959]
[1610372431656,5.68209,1054.8,1054.6,4.00959]
[1610372431857,5.68209,1054.8,1053.2,2.142]
[1610372432254,1.6725,1054.8,1052.6,2.3337]
[1610372432657,1.6725,1054.8,1051.7,2.288]
[1610372432855,1.6725,1054.8,1053.2,68.7274]
[1610372433355,1.6725,1054.8,1054.7,4.00959]
[1610372433956,0.9199,1055.7,1054.7,4.00959]
[1610372434555,24.15088961,1055.6,1054.7,6.21829]